fUSD/lending_fUSD_20251229
["ID","MTS","AMOUNT","RATE_DAILY","PERIOD"]
[400029794,1767040142911,-316.76398908,0.00016999,2]
[400029795,1767040142935,-500.0,0.00016999,2]
[400029796,1767040142964,-500.0,0.00016999,2]
[400029797,1767040142988,-502.23969281,0.00016999,2]
[400029798,1767040143012,-500.0,0.00016999,2]
[400029799,1767040143044,-608.12138438,0.00016999,2]
[400029800,1767040143067,-424.17811138,0.00016999,2]
[400029801,1767040143090,-250.0,0.00017,2]
[400029802,1767040143114,-983146.02221392,0.00017,2]
[400029810,1767040231461,-6999.2,0.000165,2]
[400029811,1767040231473,-95251.06388006,0.000165,2]
[400029812,1767040231516,-8785.31140466,0.000165,2]
[400029813,1767040231572,-1446.7295,0.000165,2]
[400029851,1767040237555,-251.14791731,0.000165,2]
[400029852,1767040237567,-251.00000008,0.000165,2]
[400029853,1767040237665,-899.37350812,0.000165,2]
[400030030,1767040239594,-857.81402166,0.000165,2]
[400030032,1767040239605,-6258.7835539,0.000165,2]
[400030038,1767040239650,-795.93,0.000165,2]
[400030040,1767040239660,-2252.96023515,0.000165,2]
[400030057,1767040239819,-875950.68597906,0.000165,2]
[400030059,1767040239831,-1639.87318808,0.00016612,2]
[400030061,1767040239842,-1639.873188,0.00016644,2]
[400030063,1767040239852,-1639.873188,0.00016676,2]
[400030065,1767040239860,-165.38,0.00016712,2]
[400030067,1767040239871,-652.17603394,0.00016794,2]
[400030069,1767040239880,-195.0,0.00016821,2]
[400030071,1767040239889,-652.17603394,0.00016847,2]
[400030073,1767040239898,-652.17603394,0.000169,2]
[400030075,1767040239908,-733.24011744,0.000169,2]
[400030077,1767040239917,-679.3806772,0.000169,2]
[400030079,1767040239926,-3038.80006363,0.000169,2]
[400030081,1767040239935,-193.78669706,0.0001699,2]
[400030083,1767040239944,-300.0,0.00016999,2]
[400030085,1767040239953,-605576.84516375,0.00017,2]
[400030179,1767040243817,-355.434006,0.00016708,2]
[400030180,1767040243831,-518.13317798,0.00016708,2]
[400030181,1767040244228,-766.30600402,0.00016708,2]
[400030182,1767040244238,-74.69399598,0.000169,2]
[400030183,1767040244258,-296.21303364,0.000169,2]
[400030184,1767040244268,-279.77082708,0.000169,2]
[400030185,1767040244278,-1046.08844292,0.00017,2]
[400030186,1767040244289,-6561.4500775,0.00017,2]
[400030187,1767040244300,-3739.90384267,0.00017,2]
[400030201,1767040245528,-425090.17145959,0.00017,2]
[400030202,1767040245541,-581272.13949025,0.00017,2]
[400030203,1767040245644,-4851.58305577,0.00017,2]
[400030204,1767040245657,-73069.30963438,0.00017,2]
[400030205,1767040245668,-1688.54009619,0.00017,2]
[400030206,1767040245679,-744.66170041,0.00017,2]
[400030207,1767040245701,-904.64662748,0.00017,2]
[400030208,1767040245713,-11639.35424814,0.00017,2]
[400030209,1767040245725,-517.3655523,0.00017,2]
[400030210,1767040245737,-5592.74974731,0.00017,2]
[400030211,1767040245812,-25225.28909148,0.00017,2]
[400030214,1767040245824,-454.54933519,0.00017,2]
[400030278,1767041047586,-244.01,0.00013699,2]
[400030279,1767041047858,-96.7294698,0.00014041,2]
[400030287,1767041431664,-195.0,0.00014555,2]
[400030288,1767041431674,-133.4750411,0.00015,2]
[400030289,1767041431686,-207.21837572,0.00015,2]
[400030290,1767041431695,-280.8,0.00015287,2]
[400030291,1767041431705,-150.0,0.00015288,2]
[400030292,1767041431714,-150.0,0.00015288,2]
[400030293,1767041431724,-24.73667723,0.00015288,2]
[400030294,1767041431770,-125.26332277,0.00015288,2]
[400030295,1767041431780,-150.0,0.00015288,2]
[400030296,1767041431789,-150.0,0.00015288,2]
[400030297,1767041431798,-150.0,0.00015288,2]
[400030298,1767041431807,-150.0,0.00015288,2]
[400030299,1767041431817,-150.0,0.00015288,2]
[400030300,1767041431826,-150.0,0.00015288,2]
[400030302,1767041431834,-150.0,0.00015288,2]
[400030304,1767041431843,-150.0,0.00015288,2]
[400030305,1767041431852,-150.0,0.00015369,2]
[400030307,1767041431862,-150.0,0.00015377,2]
[400030309,1767041431871,-150.0,0.00015409,2]
[400030311,1767041431881,-150.0,0.00015418,2]
[400030313,1767041431890,-195.0,0.00015445,2]
[400030315,1767041431898,-195.0,0.00015445,2]
[400030317,1767041431908,-195.0,0.00015445,2]
[400030319,1767041431917,-150.0,0.00015449,2]
[400030321,1767041431926,-150.0,0.00015466,2]
[400030323,1767041431935,-150.0,0.00015476,2]
[400030325,1767041431944,-150.0,0.0001553,2]
[400030327,1767041431953,-150.0,0.0001553,2]
[400030328,1767041431961,-150.0,0.00015549,2]
[400030329,1767041431971,-150.0,0.00015556,2]
[400030331,1767041431981,-150.0,0.00015611,2]
[400030333,1767041431990,-150.0,0.00015627,2]
[400030334,1767041431999,-150.0,0.00015645,2]
[400030335,1767041432008,-150.0,0.00015652,2]
[400030336,1767041432019,-150.0,0.00015665,2]
[400030337,1767041432226,-150.0,0.0001568,2]
[400030338,1767041432237,-150.0,0.00015692,2]
[400030339,1767041432246,-150.0,0.00015712,2]
[400030340,1767041432255,-150.0,0.00015735,2]
[400030341,1767041432264,-150.0,0.00015773,2]
[400030342,1767041432274,-150.0,0.00015773,2]
[400030343,1767041432284,-150.0,0.0001581,2]
[400030344,1767041432293,-150.0,0.00015824,2]
[400030345,1767041432304,-150.0,0.00015854,2]
[400030346,1767041432313,-150.0,0.00015854,2]
[400030347,1767041432323,-150.0,0.00015854,2]
[400030348,1767041432331,-150.0,0.00015854,2]
[400030349,1767041432340,-150.0,0.00015894,2]
[400030350,1767041432349,-1000.0,0.00015907,2]
[400030351,1767041432358,-150.0,0.00015913,2]
[400030352,1767041432367,-150.0,0.00015935,2]
[400030353,1767041432378,-150.0,0.00015941,2]
[400030354,1767041432387,-151.0,0.00015949,2]
[400030355,1767041432396,-151.0,0.00015949,2]
[400030356,1767041432406,-151.0,0.00015949,2]
[400030357,1767041432415,-151.0,0.00015949,2]
[400030358,1767041432425,-151.0,0.00015949,2]
[400030359,1767041432435,-151.0,0.00015949,2]
[400030360,1767041432444,-151.0,0.00015952,2]
[400030361,1767041432455,-151.0,0.00015952,2]
[400030362,1767041432464,-150.0,0.00015967,2]
[400030363,1767041432474,-150.0,0.00016003,2]
[400030364,1767041432484,-195.0,0.0001601,2]
[400030365,1767041432494,-168.43778274,0.0001601,2]
[400030366,1767041432503,-250.0,0.0001601,2]
[400030367,1767041432512,-150.0,0.00016016,2]
[400030368,1767041432522,-150.0,0.00016016,2]
[400030369,1767041432531,-150.0,0.00016043,2]
[400030370,1767041432541,-150.0,0.00016072,2]
[400030371,1767041432550,-150.0,0.00016092,2]
[400030372,1767041432559,-150.0,0.00016097,2]
[400030373,1767041432568,-150.0,0.00016137,2]
[400030374,1767041432577,-150.0,0.00016137,2]
[400030375,1767041432588,-150.0,0.00016137,2]
[400030376,1767041432599,-150.0,0.00016177,2]
[400030377,1767041432607,-150.0,0.00016182,2]
[400030378,1767041432617,-150.0,0.00016202,2]
[400030379,1767041432626,-150.0,0.00016231,2]
[400030380,1767041432634,-150.0,0.00016258,2]
[400030381,1767041432643,-150.0,0.00016258,2]
[400030382,1767041432652,-150.0,0.00016271,2]
[400030383,1767041432661,-150.0,0.00016307,2]
[400030384,1767041432670,-150.0,0.00016333,2]
[400030385,1767041432680,-150.0,0.00016339,2]
[400030386,1767041432691,-150.0,0.0001636,2]
[400030387,1767041432700,-150.0,0.0001638,2]
[400030388,1767041432709,-150.0,0.0001642,2]
[400030389,1767041432719,-150.0,0.0001642,2]
[400030390,1767041432729,-150.0,0.0001642,2]
[400030391,1767041432738,-150.0,0.0001642,2]
[400030392,1767041432748,-800.0,0.00016438,2]
[400030393,1767041432757,-150.0,0.0001645,2]
[400030394,1767041432766,-150.0,0.00016464,2]
[400030395,1767041432776,-150.0,0.00016501,2]
[400030396,1767041432786,-150.0,0.00016501,2]
[400030397,1767041432797,-150.0,0.00016539,2]
[400030398,1767041432808,-150.0,0.00016562,2]
[400030399,1767041432818,-150.0,0.00016582,2]
[400030400,1767041432827,-150.0,0.00016594,2]
[400030401,1767041432837,-150.0,0.00016609,2]
[400030402,1767041432846,-150.0,0.00016622,2]
[400030403,1767041432856,-150.0,0.00016629,2]
[400030404,1767041432865,-150.0,0.00016647,2]
[400030405,1767041432875,-150.0,0.00016663,2]
[400030406,1767041432884,-225688.19770584,0.00016707,2]
[400030407,1767041432896,-62664.54540252,0.00016707,2]
[400030408,1767041432907,-138360.91026709,0.00016707,2]
[400030409,1767041432918,-41799.12262455,0.00016707,2]
[400030410,1767041432928,-150.0,0.00016718,2]
[400030411,1767041432937,-150.0,0.00016725,2]
[400030412,1767041432946,-1475.88586928,0.0001673,2]
[400030413,1767041432956,-150.0,0.00016744,2]
[400030414,1767041432967,-150.0,0.00016744,2]
[400030415,1767041432977,-1475.8858692,0.00016749,2]
[400030416,1767041432986,-733.24011744,0.00016764,2]
[400030417,1767041432997,-7591.7801142,0.00016766,2]
[400030418,1767041433007,-1475.8858692,0.00016768,2]
[400030419,1767041433017,-7591.78011417,0.00016781,2]
[400030420,1767041433026,-692.29661032,0.00016783,2]
[400030421,1767041433036,-1475.8858692,0.00016787,2]
[400030422,1767041433046,-7591.78011417,0.00016796,2]
[400030423,1767041433056,-150.0,0.00016798,2]
[400030424,1767041433065,-150.50835681,0.000168,2]
[400030425,1767041433074,-1539.01432123,0.000168,2]
[400030426,1767041433084,-692.29661032,0.000168,2]
[400030427,1767041433094,-1475.8858692,0.00016806,2]
[400030428,1767041433103,-150.0,0.00016807,2]
[400030429,1767041433112,-7591.78011417,0.00016811,2]
[400030430,1767041433121,-1475.8858692,0.00016824,2]
[400030431,1767041433131,-150.0,0.00016825,2]
[400030432,1767041433140,-4533.30287833,0.00016826,2]
[400030433,1767041433162,-3058.47723584,0.00016826,2]
[400030434,1767041433171,-1000.0,0.00016829,2]
[400030435,1767041433180,-6891.8973953,0.0001683,2]
[400030436,1767041433191,-9412.5,0.0001683,2]
[400030444,1767041437701,-387.51068456,0.00016706,2]
[400030445,1767041437710,-230.22359054,0.00016706,2]
[400030446,1767041437720,-500.0,0.00016706,2]
[400030447,1767041437729,-500.0,0.00016706,2]
[400030449,1767041437738,-500.0,0.00016706,2]
[400030451,1767041437748,-500.0,0.00016706,2]
[400030452,1767041437758,-500.0,0.00016706,2]
[400030453,1767041437767,-500.0,0.00016706,2]
[400030454,1767041437776,-500.0,0.00016706,2]
[400030455,1767041437785,-500.0,0.00016706,2]
[400030456,1767041437795,-421.1147571,0.00016706,2]
[400030457,1767041437805,-500.0,0.00016706,2]
[400030458,1767041437816,-500.0,0.00016706,2]
[400030459,1767041437825,-500.0,0.00016706,2]
[400030460,1767041437835,-504.59441296,0.00016706,2]
[400030461,1767041437844,-175.08960186,0.00016706,2]
[400030462,1767041437856,-324.91039814,0.00016706,2]
[400030463,1767041437865,-500.0,0.00016706,2]
[400030464,1767041437874,-500.0,0.00016706,2]
[400030465,1767041437885,-170.28952009,0.00016706,2]
[400030466,1767041437897,-329.71047991,0.00016706,2]
[400030467,1767041437908,-500.0,0.00016706,2]
[400030468,1767041437917,-314.78934311,0.00016706,2]
[400030469,1767041437932,-185.21065689,0.00016706,2]
[400030470,1767041437943,-500.0,0.00016706,2]
[400030471,1767041437953,-358.13934311,0.00016706,2]
[400030472,1767041437965,-141.86065689,0.00016706,2]
[400030473,1767041437974,-500.0,0.00016706,2]
[400030475,1767041437983,-500.0,0.00016706,2]
[400030477,1767041437991,-500.0,0.00016706,2]
[400030479,1767041438002,-500.0,0.00016706,2]
[400030481,1767041438010,-500.0,0.00016706,2]
[400030483,1767041438019,-314.1281023,0.00016706,2]
[400030485,1767041438030,-185.8718977,0.00016706,2]
[400030487,1767041438039,-232.01943732,0.00016706,2]
[400030490,1767041438050,-267.98056268,0.00016706,2]
[400030491,1767041438060,-500.0,0.00016706,2]
[400030494,1767041438069,-500.0,0.00016706,2]
[400030495,1767041438078,-500.0,0.00016706,2]
[400030498,1767041438087,-273.04713613,0.00016706,2]
[400030500,1767041438099,-226.95286387,0.00016706,2]
[400030502,1767041438108,-349.60453427,0.00016706,2]
[400030504,1767041438119,-150.39546573,0.00016706,2]
[400030506,1767041438128,-500.0,0.00016706,2]
[400030508,1767041438137,-500.0,0.00016706,2]
[400030510,1767041438146,-443.36993574,0.00016706,2]
[400030671,1767041439774,-151.0,0.00016453,2]
[400030673,1767041439784,-151.0,0.00016453,2]
[400030675,1767041439794,-56.63006426,0.00016706,2]
[400030677,1767041439803,-450.0,0.00016706,2]
[400030679,1767041439812,-194.69953196,0.00016706,2]
[400030681,1767041439823,-305.30046804,0.00016706,2]
[400030683,1767041439832,-500.0,0.00016706,2]
[400030685,1767041439842,-108.94387546,0.00016706,2]
[400030687,1767041439853,-298.51436949,0.00016706,2]
[400030689,1767041439864,-92.54175505,0.00016706,2]
[400030691,1767041439873,-343.34287796,0.00016706,2]
[400030694,1767041439885,-156.65712204,0.00016706,2]
[400030695,1767041439894,-197.88098225,0.00016706,2]
[400030698,1767041439905,-302.11901775,0.00016706,2]
[400030700,1767041439914,-500.0,0.00016706,2]
[400030702,1767041439923,-500.0,0.00016706,2]
[400030704,1767041439932,-216.0043265,0.00016706,2]
[400030706,1767041439944,-283.9956735,0.00016706,2]
[400030708,1767041439954,-500.0,0.00016706,2]
[400030710,1767041439963,-500.0,0.00016706,2]
[400030712,1767041439972,-500.0,0.00016706,2]
[400030714,1767041439984,-500.0,0.00016706,2]
[400030716,1767041439993,-500.0,0.00016706,2]
[400030718,1767041440003,-500.0,0.00016706,2]
[400030720,1767041440011,-500.0,0.00016706,2]
[400030722,1767041440020,-500.0,0.00016706,2]
[400030724,1767041440029,-500.0,0.00016706,2]
[400030726,1767041440039,-500.0,0.00016706,2]
[400030728,1767041440048,-500.0,0.00016706,2]
[400030730,1767041440057,-500.0,0.00016706,2]
[400030732,1767041440067,-500.0,0.00016706,2]
[400030734,1767041440076,-244.84940775,0.00016706,2]
[400030737,1767041440092,-255.15059225,0.00016706,2]
[400030738,1767041440102,-10.80940775,0.00016706,2]
[400030741,1767041440114,-489.19059225,0.00016706,2]
[400030743,1767041440124,-500.0,0.00016706,2]
[400030745,1767041440133,-500.0,0.00016706,2]
[400030747,1767041440144,-500.0,0.00016706,2]
[400030749,1767041440153,-500.0,0.00016706,2]
[400030751,1767041440165,-1200.32940775,0.0001683,2]
[400030753,1767041440177,-17845.8268315,0.0001683,2]
[400030755,1767041440188,-60946.93440316,0.0001683,2]
[400030758,1767041440203,-954.72283817,0.0001683,2]
[400030760,1767041440217,-6035.95388972,0.0001683,2]
[400030762,1767041440228,-436.215,0.0001683,2]
[400030765,1767041440241,-98086.12451583,0.0001683,2]
[400030767,1767041440250,-926.45060488,0.0001683,2]
[400030769,1767041440259,-237.55451584,0.00016839,2]
[400030771,1767041440269,-7591.78011417,0.0001684,2]
[400030773,1767041440279,-1475.8858692,0.00016843,2]
[400030775,1767041440288,-500.0,0.00016844,2]
[400030777,1767041440298,-321.45865313,0.00016844,2]
[400030779,1767041440311,-7591.78011417,0.00016855,2]
[400030781,1767041440320,-150.0,0.00016856,2]
[400030783,1767041440329,-1812.34439512,0.00016856,2]
[400030785,1767041440339,-1475.8858692,0.00016862,2]
[400030787,1767041440348,-367.8,0.00016864,2]
[400030789,1767041440358,-150.0,0.00016865,2]
[400030791,1767041440369,-500.0,0.00016865,2]
[400030793,1767041440378,-500.0,0.00016865,2]
[400030795,1767041440388,-5957.0391917,0.00016866,2]
[400030797,1767041440397,-545452.1937187,0.00016866,2]
[400030799,1767041440406,-22876.5854616,0.00016866,2]
[400030801,1767041440415,-332812.0632356,0.00016866,2]
[400030803,1767041440425,-7591.78011417,0.0001687,2]
[400030805,1767041440434,-207.71212598,0.00016877,2]
[400030807,1767041440444,-1475.8858692,0.00016881,2]
[400030809,1767041440453,-7591.78011417,0.00016885,2]
[400030811,1767041440462,-150.0,0.00016897,2]
[400030813,1767041440471,-500.0,0.00016899,2]
[400030815,1767041440481,-500.0,0.00016899,2]
[400030818,1767041440491,-500.0,0.00016899,2]
[400030820,1767041440503,-500.0,0.00016899,2]
[400030822,1767041440512,-1454.3177,0.000169,2]
[400030824,1767041440521,-1000.0,0.000169,2]
[400030826,1767041440531,-7591.78011417,0.000169,2]
[400030828,1767041440540,-1475.8858692,0.000169,2]
[400030830,1767041440549,-679.3806772,0.000169,2]
[400030832,1767041440558,-175.71265842,0.000169,2]
[400030834,1767041440567,-3372.47457484,0.000169,2]
[400030836,1767041440577,-150.0,0.00016905,2]
[400030838,1767041440586,-3899.0,0.00016959,2]
[400030840,1767041440595,-500.0,0.00016973,2]
[400030842,1767041440604,-402.23740882,0.00016973,2]
[400030844,1767041440613,-648.46173605,0.00016973,2]
[400030846,1767041440622,-500.0,0.00016973,2]
[400030848,1767041440632,-500.0,0.00016973,2]
[400030850,1767041440641,-500.0,0.00016973,2]
[400030852,1767041440650,-500.0,0.00016973,2]
[400030854,1767041440660,-500.0,0.00016973,2]
[400030856,1767041440669,-500.0,0.00016973,2]
[400030858,1767041440678,-349.16265713,0.00016973,2]
[400030860,1767041440687,-500.0,0.00016973,2]
[400030862,1767041440700,-598.60555363,0.00016973,2]
[400030864,1767041440710,-500.0,0.00016973,2]
[400030866,1767041440720,-500.0,0.00016973,2]
[400030868,1767041440729,-500.66742167,0.00016973,2]
[400030870,1767041440739,-500.0,0.00016973,2]
[400030872,1767041440755,-500.0,0.00016973,2]
[400030874,1767041440765,-500.0,0.00016973,2]
[400030876,1767041440774,-500.0,0.00016973,2]
[400030878,1767041440784,-500.0,0.00016973,2]
[400030880,1767041440793,-500.0,0.00016973,2]
[400030882,1767041440803,-500.0,0.00016973,2]
[400030884,1767041440814,-500.0,0.00016973,2]
[400030887,1767041440823,-500.0,0.00016973,2]
[400030888,1767041440833,-500.0,0.00016973,2]
[400030891,1767041440849,-500.0,0.00016973,2]
[400030893,1767041440866,-500.0,0.00016973,2]
[400030895,1767041440875,-500.0,0.00016973,2]
[400030897,1767041440885,-218.5077492,0.00016983,2]
[400030899,1767041440894,-500.0,0.00016983,2]
[400030901,1767041440903,-150.0,0.00016986,2]
[400030903,1767041440915,-195.83057641,0.00016986,2]
[400030905,1767041440924,-269.96857752,0.00016986,2]
[400030907,1767041440934,-245.69368063,0.00016986,2]
[400030909,1767041440944,-263.57511802,0.00016986,2]
[400030911,1767041440954,-199.77046782,0.00016986,2]
[400030913,1767041440964,-270.7355794,0.00016986,2]
[400030915,1767041440974,-171.10828189,0.00016986,2]
[400030917,1767041440985,-204.18748814,0.00016986,2]
[400030919,1767041440994,-284.46660851,0.00016986,2]
[400030921,1767041441003,-176.41435157,0.00016986,2]
[400030923,1767041441013,-1812.34439512,0.0001699,2]
[400030925,1767041441022,-1812.34439512,0.0001699,2]
[400030927,1767041441031,-300.0,0.00016999,2]
[400030929,1767041441040,-500.0,0.00016999,2]
[400030931,1767041441049,-500.0,0.00016999,2]
[400030933,1767041441058,-500.0,0.00016999,2]
[400030935,1767041441067,-500.0,0.00016999,2]
[400030960,1767041441297,-500.0,0.00016999,2]
[400030962,1767041441307,-500.0,0.00016999,2]
[400030964,1767041441316,-500.0,0.00016999,2]
[400030966,1767041441326,-500.0,0.00016999,2]
[400030968,1767041441335,-500.0,0.00016999,2]
[400030970,1767041441344,-500.0,0.00016999,2]
[400030972,1767041441352,-500.0,0.00016999,2]
[400030974,1767041441361,-500.0,0.00016999,2]
[400030976,1767041441370,-500.0,0.00016999,2]
[400030978,1767041441379,-500.0,0.00016999,2]
[400030980,1767041441388,-500.0,0.00016999,2]
[400030982,1767041441398,-500.0,0.00016999,2]
[400030984,1767041441407,-590.60167877,0.00016999,2]
[400030987,1767041441425,-300.0,0.00016999,2]
[400030990,1767041441436,-300.0,0.00016999,2]
[400030992,1767041441446,-500.0,0.00016999,2]
[400030994,1767041441455,-500.0,0.00016999,2]
[400030996,1767041441466,-500.0,0.00016999,2]
[400030998,1767041441475,-500.0,0.00016999,2]
[400031000,1767041441484,-500.0,0.00016999,2]
[400031002,1767041441493,-500.0,0.00016999,2]
[400031004,1767041441503,-500.0,0.00016999,2]
[400031006,1767041441514,-500.0,0.00016999,2]
[400031008,1767041441523,-500.0,0.00016999,2]
[400031010,1767041441532,-500.0,0.00016999,2]
[400031012,1767041441541,-500.0,0.00016999,2]
[400031014,1767041441551,-500.0,0.00016999,2]
[400031016,1767041441560,-500.0,0.00016999,2]
[400031018,1767041441570,-332.99,0.00016999,2]
[400031020,1767041441580,-300.0,0.00016999,2]
[400031022,1767041441589,-300.0,0.00016999,2]
[400031024,1767041441599,-666.0,0.00016999,2]
[400031026,1767041441608,-300.0,0.00016999,2]
[400031028,1767041441619,-768864.43864025,0.00017,2]
[400031044,1767041441758,-617758.58038498,0.00017,2]
[400031047,1767041441774,-19068.65323806,0.00017,2]
[400031049,1767041441783,-71069.77070123,0.00017,2]
[400031292,1767041444164,-465.08686962,0.00017,2]
[400031295,1767041444177,-5399.0,0.00017,2]
[400031301,1767041444228,-343943.77137256,0.00017,2]
[400031303,1767041444244,-45476.55472261,0.00017,2]
[400031307,1767041444273,-15061.12767705,0.00017,2]
[400031310,1767041444285,-3076.96730677,0.00017,2]
[400031454,1767041445710,-10264.48088164,0.00017,2]
[400031456,1767041445722,-6802.16,0.00017,2]
[400031458,1767041445734,-44490.98504339,0.00017,2]
[400031460,1767041445746,-16382.54989279,0.00017,2]
[400031463,1767041445757,-174399.99999994,0.00017,2]
[400031470,1767041445818,-2074.74606667,0.00017,2]
[400031472,1767041445829,-503.26943875,0.00017,2]
[400031475,1767041445840,-411.999998,0.00017,2]
[400031477,1767041445851,-10719.91073002,0.00017,2]
[400031479,1767041445862,-1004.86603967,0.00017,2]
[400031481,1767041445874,-1074.08152458,0.00017,2]
[400031817,1767041551362,159.24,8.316e-05,2]
[400031837,1767042631799,-150.0,0.00015288,2]
[400031838,1767042631810,-150.00000001,0.00015288,2]
[400031839,1767042631819,-150.0,0.00015288,2]
[400031840,1767042631829,-150.0,0.00015288,2]
[400031841,1767042631840,-150.0,0.00015288,2]
[400031842,1767042631851,-250.03401256,0.00015288,2]
[400031843,1767042631861,-150.0,0.00015288,2]
[400031844,1767042631874,-195.0,0.00015365,2]
[400031845,1767042631884,-150.0,0.00015442,2]
[400031846,1767042631894,-150.0,0.00015597,2]
[400031847,1767042631903,-2372.37,0.0001563,2]
[400031848,1767042631913,-259.29,0.0001565,2]
[400031849,1767042631923,-150.0,0.00015751,2]
[400031850,1767042631932,-150.0,0.00015905,2]
[400031851,1767042631941,-150.0,0.0001606,2]
[400031852,1767042631950,-151.0,0.00016124,2]
[400031853,1767042631960,-151.0,0.00016127,2]
[400031854,1767042631969,-300.0,0.00016128,2]
[400031855,1767042631979,-151.08,0.00016129,2]
[400031856,1767042631989,-151.0,0.00016129,2]
[400031857,1767042631998,-151.0,0.00016129,2]
[400031858,1767042632008,-200.0,0.00016131,2]
[400031859,1767042632017,-150.0,0.00016137,2]
[400031860,1767042632026,-150.0,0.00016214,2]
[400031861,1767042632036,-584.07,0.00016219,2]
[400031862,1767042632045,-246.88555572,0.000163,2]
[400031863,1767042632054,-281.34,0.00016325,2]
[400031864,1767042632064,-150.0,0.00016369,2]
[400031865,1767042632074,-200.0,0.00016406,2]
[400031866,1767042632085,-6701.48,0.00016438,2]
[400031867,1767042632095,-150.0,0.00016523,2]
[400031868,1767042632104,-2500.0,0.00016607,2]
[400031869,1767042632116,-159.24,0.00016631,2]
[400031870,1767042632126,-399.00542921,0.00016677,2]
[400031871,1767042632135,-150.0,0.00016677,2]
[400031873,1767042632145,-510.0,0.00016696,2]
[400031875,1767042632155,-200.0,0.00016697,2]
[400031877,1767042632164,-500.0,0.00016697,2]
[400031879,1767042632173,-200.0,0.00016697,2]
[400031881,1767042632182,-207.4,0.00016697,2]
[400031883,1767042632191,-500.0,0.00016697,2]
[400031885,1767042632200,-151.0,0.00016697,2]
[400031886,1767042632209,-151.0,0.00016697,2]
[400031889,1767042632219,-151.0,0.00016697,2]
[400031891,1767042632229,-151.0,0.00016697,2]
[400031893,1767042632238,-151.0,0.00016697,2]
[400031895,1767042632247,-151.0,0.00016697,2]
[400031897,1767042632261,-151.0,0.00016697,2]
[400031899,1767042632270,-151.0,0.00016697,2]
[400031901,1767042632279,-151.0,0.00016697,2]
[400031903,1767042632289,-151.0,0.00016697,2]
[400031905,1767042632298,-151.0,0.00016697,2]
[400031907,1767042632307,-151.0,0.00016697,2]
[400031909,1767042632317,-889.07,0.00016706,2]
[400031911,1767042632326,-894.91811465,0.00016706,2]
[400031913,1767042632336,-500.0,0.00016706,2]
[400031915,1767042632345,-500.0,0.00016706,2]
[400031917,1767042632355,-500.0,0.00016706,2]
[400031919,1767042632365,-500.0,0.00016706,2]
[400031921,1767042632374,-500.0,0.00016706,2]
[400031923,1767042632383,-500.0,0.00016706,2]
[400031925,1767042632394,-500.0,0.00016706,2]
[400031927,1767042632404,-500.0,0.00016706,2]
[400031929,1767042632413,-500.0,0.00016706,2]
[400031931,1767042632422,-224.55055853,0.00016758,2]
[400031933,1767042632432,-166.66,0.00016777,2]
[400031935,1767042632441,-150.83865992,0.000168,2]
[400031937,1767042632451,-300.0,0.00016816,2]
[400031939,1767042632461,-347.75704666,0.00016816,2]
[400031941,1767042632470,-195.0,0.00016816,2]
[400031943,1767042632480,-150.0,0.00016832,2]
[400031946,1767042632493,-256.48755941,0.00016869,2]
[400031948,1767042632502,-220.62493729,0.00016869,2]
[400031950,1767042632511,-1026.0095475,0.000169,2]
[400031952,1767042632520,-247.27135308,0.000169,2]
[400031953,1767042632531,-186.51388472,0.000169,2]